fUSD/lending_fUSD_20251026
["ID","MTS","AMOUNT","RATE_DAILY","PERIOD"]
[392439519,1761475869044,-156.47806448,0.000411,120]
[392439520,1761475869053,-156.47806448,0.000411,120]
[392439521,1761475869062,-156.47806448,0.000411,120]
[392439522,1761475869072,-156.47,0.000411,120]
[392439523,1761475869081,-152.13145157,0.000411,120]
[392439524,1761475869090,-152.13145157,0.000411,120]
[392439525,1761475869100,-152.13145157,0.000411,120]
[392439526,1761475869109,-500.0,0.000411,2]
[392439527,1761475869118,-3783.5660872,0.000412,120]
[392439528,1761475869128,-500.0,0.00041203,120]
[392439529,1761475869137,-1473.98,0.00041369,9]
[392439530,1761475869147,-1605.5,0.00041369,2]
[392439531,1761475869157,-910.15,0.00041369,9]
[392439532,1761475869167,-696.9,0.00041386,30]
[392439533,1761475869176,-696.9,0.00041386,30]
[392439534,1761475869185,-696.9,0.00041386,30]
[392439535,1761475869194,-475.88,0.00041386,30]
[392439536,1761475869203,-696.9,0.00041386,30]
[392439537,1761475869214,-696.9,0.00041386,30]
[392439538,1761475869223,-475.88,0.00041386,30]
[392439539,1761475869234,-475.88,0.00041386,30]
[392439540,1761475869243,-194.36,0.00041386,30]
[392439541,1761475869253,-1390.86,0.00041386,30]
[392439542,1761475869262,-475.88,0.00041386,30]
[392439543,1761475869271,-475.88,0.00041386,30]
[392439544,1761475869280,-475.88,0.00041386,30]
[392439545,1761475869289,-475.88,0.00041386,30]
[392439546,1761475869298,-474.43,0.00041386,30]
[392439547,1761475869308,-570.66619608,0.00041434,2]
[392439548,1761475869317,-328.606078,0.0004146,120]
[392439549,1761475869326,-3377.35199742,0.00041484,2]
[392439550,1761475869335,-152.13145157,0.00041513,120]
[392439551,1761475869345,-4710.98,0.000416,30]
[392439552,1761475869354,-1473.98,0.00041643,9]
[392439553,1761475869363,-1605.5,0.00041643,2]
[392439554,1761475869374,-910.15,0.00041643,9]
[392439555,1761475869383,-507.15181486,0.00041772,4]
[392439556,1761475869393,-1202.18,0.00041797,30]
[392439557,1761475869405,-547.92,0.00041797,30]
[392439558,1761475869415,-414.6,0.00041797,30]
[392439559,1761475869424,-168.61,0.00041797,30]
[392439560,1761475869434,-150.0,0.00041797,30]
[392439561,1761475869443,-176.46,0.00041797,30]
[392439562,1761475869452,-547.92,0.00041797,30]
[392439563,1761475869460,-167.21,0.00041797,30]
[392439564,1761475869469,-176.46,0.00041797,30]
[392439565,1761475869478,-1202.18,0.00041797,30]
[392439566,1761475869487,-168.61,0.00041797,30]
[392439567,1761475869496,-150.0,0.00041797,30]
[392439568,1761475869505,-150.0,0.00041797,30]
[392439569,1761475869515,-414.6,0.00041797,30]
[392439570,1761475869524,-150.0,0.00041797,30]
[392439571,1761475869534,-1202.18,0.00041797,30]
[392439572,1761475869543,-150.0,0.00041797,30]
[392439573,1761475869552,-150.0,0.00041797,30]
[392439574,1761475869561,-150.0,0.00041797,30]
[392439575,1761475869570,-406.88,0.00041797,30]
[392439576,1761475869579,-150.0,0.00041797,30]
[392439577,1761475869588,-1202.18,0.00041797,30]
[392439578,1761475869597,-168.61,0.00041797,30]
[392439579,1761475869607,-547.92,0.00041797,30]
[392439580,1761475869616,-414.6,0.00041797,30]
[392439581,1761475869625,-150.0,0.00041797,30]
[392439582,1761475869635,-150.0,0.00041797,30]
[392439583,1761475869644,-150.0,0.00041797,30]
[392439584,1761475869653,-150.0,0.00041797,30]
[392439585,1761475869663,-547.92,0.00041797,30]
[392439586,1761475869672,-1202.18,0.00041797,30]
[392439587,1761475869681,-176.46,0.00041797,30]
[392439588,1761475869689,-168.61,0.00041797,30]
[392439589,1761475869699,-150.0,0.00041797,30]
[392439590,1761475869707,-414.6,0.00041797,30]
[392439591,1761475869717,-150.0,0.00041797,30]
[392439592,1761475869726,-547.92,0.00041797,30]
[392439593,1761475869735,-1202.18,0.00041797,30]
[392439594,1761475869744,-168.61,0.00041797,30]
[392439595,1761475869753,-150.0,0.00041797,30]
[392439596,1761475869762,-176.46,0.00041797,30]
[392439597,1761475869771,-150.0,0.00041797,30]
[392439598,1761475869780,-414.6,0.00041797,30]
[392439599,1761475869789,-150.0,0.00041797,30]
[392439600,1761475869798,-150.0,0.00041797,30]
[392439601,1761475869807,-156.59,0.00041797,30]
[392439602,1761475869816,-352.15,0.00041797,30]
[392439603,1761475869825,-547.92,0.00041797,30]
[392439604,1761475869835,-168.61,0.00041797,30]
[392439605,1761475869843,-150.0,0.00041797,30]
[392439606,1761475869852,-150.0,0.00041797,30]
[392439607,1761475869861,-547.92,0.00041797,30]
[392439608,1761475869870,-176.46,0.00041797,30]
[392439609,1761475869879,-150.0,0.00041797,30]
[392439610,1761475869888,-1202.18,0.00041797,30]
[392439611,1761475869897,-150.0,0.00041797,30]
[392439612,1761475869910,-150.0,0.00041797,30]
[392439613,1761475869919,-168.61,0.00041797,30]
[392439614,1761475869928,-150.0,0.00041797,30]
[392439615,1761475869938,-414.6,0.00041797,30]
[392439616,1761475869947,-223.06,0.00041797,30]
[392439617,1761475869957,-1202.18,0.00041797,30]
[392439618,1761475869966,-547.92,0.00041797,30]
[392439619,1761475869975,-352.92,0.00041797,30]
[392439620,1761475870064,-150.0,0.00041797,30]
[392439621,1761475870074,-168.61,0.00041797,30]
[392439622,1761475870085,-414.6,0.00041797,30]
[392439623,1761475870094,-176.46,0.00041797,30]
[392439624,1761475870103,-168.61,0.00041797,30]
[392439625,1761475870112,-1095.84,0.00041797,30]
[392439626,1761475870121,-414.6,0.00041797,30]
[392439627,1761475870129,-1192.85,0.00041797,30]
[392439628,1761475870138,-150.0,0.00041797,30]
[392439629,1761475870147,-150.0,0.00041797,30]
[392439630,1761475870157,-176.46,0.00041797,30]
[392439631,1761475870168,-547.92,0.00041797,30]
[392439632,1761475870178,-414.6,0.00041797,30]
[392439633,1761475870187,-337.22,0.00041797,30]
[392439634,1761475870196,-150.0,0.00041797,30]
[392439635,1761475870205,-547.92,0.00041797,30]
[392439636,1761475870214,-176.46,0.00041797,30]
[392439637,1761475870223,-168.61,0.00041797,30]
[392439638,1761475870232,-150.0,0.00041797,30]
[392439639,1761475870242,-300.0,0.00041797,30]
[392439640,1761475870251,-414.6,0.00041797,30]
[392439641,1761475870260,-176.46,0.00041797,30]
[392439642,1761475870269,-1095.84,0.00041797,30]
[392439643,1761475870278,-168.61,0.00041797,30]
[392439644,1761475870288,-414.6,0.00041797,30]
[392439645,1761475870298,-150.0,0.00041797,30]
[392439646,1761475870307,-176.46,0.00041797,30]
[392439647,1761475870316,-414.6,0.00041797,30]
[392439648,1761475870326,-337.22,0.00041797,30]
[392439649,1761475870335,-150.0,0.00041797,30]
[392439650,1761475870345,-547.92,0.00041797,30]
[392439651,1761475870356,-150.0,0.00041797,30]
[392439652,1761475870365,-547.92,0.00041797,30]
[392439653,1761475870374,-168.61,0.00041797,30]
[392439654,1761475870384,-352.92,0.00041797,30]
[392439655,1761475870393,-414.6,0.00041797,30]
[392439656,1761475870403,-150.0,0.00041797,30]
[392439657,1761475870412,-547.92,0.00041797,30]
[392439658,1761475870422,-300.0,0.00041797,30]
[392439659,1761475870432,-150.0,0.00041797,30]
[392439660,1761475870441,-168.61,0.00041797,30]
[392439661,1761475870450,-414.6,0.00041797,30]
[392439662,1761475870459,-176.46,0.00041797,30]
[392439663,1761475870472,-337.22,0.00041797,30]
[392439664,1761475870481,-547.92,0.00041797,30]
[392439665,1761475870490,-150.0,0.00041797,30]
[392439666,1761475870500,-176.46,0.00041797,30]
[392439667,1761475870509,-414.6,0.00041797,30]
[392439668,1761475870519,-150.0,0.00041797,30]
[392439669,1761475870528,-176.46,0.00041797,30]
[392439670,1761475870537,-1095.84,0.00041797,30]
[392439671,1761475870546,-168.61,0.00041797,30]
[392439672,1761475870556,-150.0,0.00041797,30]
[392439673,1761475870565,-414.6,0.00041797,30]
[392439674,1761475870574,-547.92,0.00041797,30]
[392439675,1761475870583,-150.0,0.00041797,30]
[392439676,1761475870593,-176.46,0.00041797,30]
[392439677,1761475870603,-414.6,0.00041797,30]
[392439678,1761475870612,-168.61,0.00041797,30]
[392439679,1761475870622,-547.92,0.00041797,30]
[392439680,1761475870631,-166.9,0.00041797,30]
[392439681,1761475870640,-414.6,0.00041797,30]
[392439682,1761475870650,-150.0,0.00041797,30]
[392439683,1761475870659,-150.0,0.00041797,30]
[392439684,1761475870669,-176.46,0.00041797,30]
[392439685,1761475870678,-176.46,0.00041797,30]
[392439686,1761475870687,-539.42,0.00041797,30]
[392439687,1761475870696,-397.16,0.00041797,30]
[392439688,1761475870706,-150.0,0.00041797,30]
[392439689,1761475870715,-176.46,0.00041797,30]
[392439690,1761475870724,-150.0,0.00041797,30]
[392439691,1761475870733,-150.0,0.00041797,30]
[392439692,1761475870742,-176.46,0.00041797,30]
[392439693,1761475870750,-1000.0,0.00041799,30]
[392439694,1761475870759,-10000.0,0.000418,120]
[392439695,1761475870769,-1474.12503062,0.00041917,9]
[392439696,1761475870778,-1605.50928757,0.00041917,2]
[392439697,1761475870789,-910.29146471,0.00041917,9]
[392439698,1761475870798,-831.0,0.00041939,30]
[392439699,1761475870808,-169.01577645,0.00042,30]
[392439700,1761475870817,-301.73864586,0.00042,30]
[392439701,1761475870826,-430.65295617,0.00042,120]
[392439702,1761475870835,-478.54681678,0.00042,2]
[392439703,1761475870844,-19100.24873039,0.00042,120]
[392439704,1761475870853,-210.44,0.00042,30]
[392439705,1761475870862,-1351.04723348,0.0004201,2]
[392439706,1761475870871,-678.84,0.0004201,2]
[392439707,1761475870880,-187.01,0.00042059,120]
[392439708,1761475870889,-5000.0,0.00042106,2]
[392439709,1761475870898,-5000.0,0.00042108,2]
[392439710,1761475870908,-150.0,0.00042111,120]
[392439711,1761475870919,-150.0,0.00042111,120]
[392439712,1761475870927,-150.0,0.00042111,120]
[392439713,1761475870936,-150.0,0.00042111,120]
[392439714,1761475870945,-150.0,0.00042111,120]
[392439715,1761475870956,-150.0,0.00042111,120]
[392439716,1761475870965,-150.0,0.00042111,120]
[392439717,1761475870974,-150.0,0.00042111,120]
[392439718,1761475870984,-150.0,0.00042111,120]
[392439719,1761475870993,-150.0,0.00042111,120]
[392439720,1761475871002,-150.0,0.00042111,120]
[392439721,1761475871010,-150.0,0.00042111,120]
[392439722,1761475871020,-150.0,0.00042111,120]
[392439723,1761475871029,-150.0,0.00042111,120]
[392439724,1761475871038,-150.0,0.00042111,120]
[392439725,1761475871048,-150.0,0.00042111,120]
[392439726,1761475871057,-150.0,0.00042111,120]
[392439727,1761475871065,-150.0,0.00042111,120]
[392439728,1761475871074,-150.0,0.00042111,120]
[392439729,1761475871083,-150.0,0.00042111,120]
[392439730,1761475871092,-475.88,0.00042137,30]
[392439731,1761475871102,-696.48,0.00042137,30]
[392439732,1761475871111,-475.88,0.00042137,30]
[392439733,1761475871120,-475.88,0.00042137,30]
[392439734,1761475871129,-475.88,0.00042137,30]
[392439735,1761475871138,-475.88,0.00042137,30]
[392439736,1761475871148,-5000.0,0.00042156,2]
[392439737,1761475871157,-25000.0,0.00042167,2]
[392439738,1761475871167,-5588.12810356,0.000422,2]
[392439739,1761475871176,-5000.0,0.00042201,2]
[392439740,1761475871186,-5000.0,0.0004228,2]
[392439741,1761475871196,-152.13145157,0.00042312,120]
[392439742,1761475871205,-254.92,0.00042319,2]
[392439743,1761475871214,-5000.0,0.00042338,2]
[392439744,1761475871222,-1018.64,0.00042344,2]
[392439745,1761475871232,-2323.33,0.00042351,2]
[392439746,1761475871241,-831.0,0.00042371,30]
[392439747,1761475871250,-1008.15,0.00042408,30]
[392439748,1761475871259,-2809.83,0.00042462,2]
[392439749,1761475871270,-175.54,0.00042464,2]
[392439750,1761475871279,-5000.0,0.00042478,2]
[392439751,1761475871288,-1099.93386758,0.000425,2]
[392439752,1761475871297,-536.617612,0.000425,120]
[392439753,1761475871306,-753.74,0.000425,14]
[392439754,1761475871315,-10000.0,0.000425,120]
[392439755,1761475871324,-5000.0,0.00042538,2]
[392439756,1761475871334,-150.0,0.00042548,30]
[392439757,1761475871343,-1202.18,0.00042548,30]
[392439758,1761475871352,-150.0,0.00042548,30]
[392439759,1761475871362,-150.0,0.00042548,30]
[392439760,1761475871372,-199.9,0.00042548,30]
[392439761,1761475871381,-150.0,0.00042548,30]
[392439762,1761475871391,-150.0,0.00042548,30]
[392439763,1761475871400,-150.0,0.00042548,30]
[392439764,1761475871409,-150.0,0.00042548,30]
[392439765,1761475871419,-5000.0,0.00042549,2]
[392439766,1761475871428,-5000.0,0.00042578,2]
[392439767,1761475871438,-5000.0,0.00042611,2]
[392439768,1761475871448,-500.0,0.00042617,120]
[392439769,1761475871457,-176.46,0.00042619,30]
[392439770,1761475871466,-176.46,0.00042619,30]
[392439771,1761475871475,-176.46,0.00042619,30]
[392439772,1761475871486,-176.46,0.00042619,30]
[392439773,1761475871496,-414.35,0.00042619,30]
[392439774,1761475871584,-25000.0,0.00042684,2]
[392439775,1761475871595,-500.0,0.00042684,120]
[392439776,1761475871603,-500.0,0.00042684,120]
[392439777,1761475871613,-500.0,0.00042684,120]
[392439778,1761475871624,-500.0,0.00042684,120]
[392439779,1761475871633,-500.0,0.00042684,120]
[392439780,1761475871642,-500.0,0.00042684,120]
[392439781,1761475871651,-500.0,0.00042684,120]
[392439782,1761475871660,-500.0,0.00042684,120]
[392439783,1761475871670,-500.0,0.00042684,120]
[392439784,1761475871679,-500.0,0.00042684,120]
[392439785,1761475871688,-500.0,0.00042684,120]
[392439786,1761475871697,-500.0,0.00042684,120]
[392439787,1761475871706,-500.0,0.00042684,120]
[392439788,1761475871715,-500.0,0.00042684,120]
[392439789,1761475871724,-500.0,0.00042684,120]
[392439790,1761475871735,-500.0,0.00042684,120]
[392439791,1761475871744,-500.0,0.00042684,120]
[392439792,1761475871754,-500.0,0.00042684,120]
[392439793,1761475871764,-500.0,0.00042684,120]
[392439794,1761475871773,-500.0,0.00042684,120]
[392439795,1761475871783,-500.0,0.00042684,120]
[392439796,1761475871792,-759.0,0.00042684,120]
[392439797,1761475871801,-500.0,0.00042684,120]
[392439798,1761475871811,-500.0,0.00042684,120]
[392439799,1761475871820,-500.0,0.00042684,120]
[392439800,1761475871829,-500.0,0.00042684,120]
[392439801,1761475871839,-500.0,0.00042684,120]
[392439802,1761475871847,-500.0,0.00042684,120]
[392439803,1761475871858,-500.0,0.00042684,120]
[392439804,1761475871867,-500.0,0.00042684,120]
[392439805,1761475871877,-500.0,0.00042684,120]
[392439806,1761475871886,-500.0,0.00042684,120]
[392439807,1761475871895,-500.0,0.00042684,120]
[392439808,1761475871908,-500.0,0.00042684,120]
[392439809,1761475871919,-500.0,0.00042684,120]
[392439810,1761475871927,-500.0,0.00042684,120]
[392439811,1761475871937,-500.0,0.00042684,120]
[392439812,1761475871946,-500.0,0.00042684,120]
[392439813,1761475871955,-500.0,0.00042684,120]
[392439814,1761475871963,-500.0,0.00042684,120]
[392439815,1761475871972,-500.0,0.00042684,120]
[392439816,1761475871981,-500.0,0.00042684,120]
[392439817,1761475871990,-500.0,0.00042684,120]
[392439818,1761475871999,-886.0,0.00042684,120]
[392439819,1761475872010,-185.78,0.000427,30]
[392439820,1761475872019,-5000.0,0.00042702,2]
[392439821,1761475872029,-5000.0,0.00042721,2]
[392439822,1761475872039,-296.49,0.000428,120]
[392439823,1761475872047,-831.0,0.00042804,30]
[392439824,1761475872057,-5000.0,0.00042807,2]
[392439825,1761475872067,-25000.0,0.00042807,2]
[392439826,1761475872076,-500.0,0.00042807,120]
[392439827,1761475872087,-500.0,0.00042807,120]
[392439828,1761475872096,-500.0,0.00042807,120]
[392439829,1761475872105,-500.0,0.00042807,120]
[392439830,1761475872114,-628.0,0.00042807,120]
[392439831,1761475872125,-500.0,0.00042807,120]
[392439832,1761475872134,-500.0,0.00042807,120]
[392439833,1761475872143,-500.0,0.00042807,120]
[392439834,1761475872153,-500.0,0.00042807,120]
[392439835,1761475872163,-500.0,0.00042807,120]
[392439836,1761475872172,-500.0,0.00042807,120]
[392439837,1761475872181,-500.0,0.00042807,120]
[392439838,1761475872190,-500.0,0.00042807,120]
[392439839,1761475872200,-500.0,0.00042807,120]
[392439840,1761475872209,-500.0,0.00042807,120]
[392439841,1761475872218,-500.0,0.00042807,120]
[392439842,1761475872227,-500.0,0.00042807,120]
[392439843,1761475872236,-500.0,0.00042807,120]
[392439844,1761475872245,-500.0,0.00042807,120]
[392439845,1761475872254,-500.0,0.00042807,120]
[392439846,1761475872263,-500.0,0.00042807,120]
[392439847,1761475872273,-500.0,0.00042807,120]
[392439848,1761475872282,-500.0,0.00042807,120]
[392439849,1761475872291,-500.0,0.00042807,120]
[392439850,1761475872302,-500.0,0.00042807,120]
[392439851,1761475872311,-500.0,0.00042807,120]
[392439852,1761475872320,-500.0,0.00042807,120]
[392439853,1761475872329,-500.0,0.00042807,120]
[392439854,1761475872338,-500.0,0.00042807,120]
[392439855,1761475872347,-500.0,0.00042807,120]
[392439856,1761475872356,-500.0,0.00042807,120]
[392439857,1761475872366,-500.0,0.00042807,120]
[392439858,1761475872375,-500.0,0.00042807,120]
[392439859,1761475872385,-500.0,0.00042807,120]
[392439860,1761475872397,-500.0,0.00042807,120]
[392439861,1761475872408,-500.0,0.00042807,120]
[392439862,1761475872418,-500.0,0.00042807,120]
[392439863,1761475872428,-500.0,0.00042807,120]
[392439864,1761475872437,-500.0,0.00042807,120]
[392439865,1761475872446,-672.0,0.00042807,120]
[392439866,1761475872455,-500.0,0.00042807,120]
[392439867,1761475872463,-500.0,0.00042807,120]
[392439868,1761475872472,-500.0,0.00042807,120]
[392439869,1761475872482,-500.0,0.00042807,120]
[392439870,1761475872491,-500.0,0.00042807,120]
[392439871,1761475872501,-500.0,0.00042807,120]
[392439872,1761475872510,-500.0,0.00042807,120]
[392439873,1761475872520,-500.0,0.00042807,120]
[392439874,1761475872529,-500.0,0.00042807,120]
[392439875,1761475872538,-500.0,0.00042807,120]
[392439876,1761475872548,-500.0,0.00042807,120]
[392439877,1761475872557,-500.0,0.00042807,120]
[392439878,1761475872566,-500.0,0.00042807,120]
[392439879,1761475872575,-500.0,0.00042807,120]
[392439880,1761475872584,-500.0,0.00042807,120]
[392439881,1761475872593,-500.0,0.00042807,120]
[392439882,1761475872603,-500.0,0.00042807,120]
[392439883,1761475872612,-500.0,0.00042807,120]
[392439884,1761475872622,-500.0,0.00042807,120]
[392439885,1761475872631,-500.0,0.00042807,120]
[392439886,1761475872640,-500.0,0.00042807,120]
[392439887,1761475872649,-500.0,0.00042807,120]
[392439888,1761475872658,-500.0,0.00042807,120]
[392439889,1761475872667,-500.0,0.00042807,120]
[392439890,1761475872676,-500.0,0.00042807,120]
[392439891,1761475872685,-500.0,0.00042807,120]
[392439892,1761475872694,-500.0,0.00042807,120]
[392439893,1761475872703,-500.0,0.00042807,120]
[392439894,1761475872712,-500.0,0.00042807,120]
[392439895,1761475872721,-500.0,0.00042807,120]
[392439896,1761475872730,-500.0,0.00042807,120]
[392439897,1761475872740,-500.0,0.00042807,120]
[392439898,1761475872749,-500.0,0.00042807,120]
[392439899,1761475872759,-500.0,0.00042807,120]
[392439900,1761475872769,-500.0,0.00042807,120]
[392439901,1761475872778,-500.0,0.00042807,120]
[392439902,1761475872787,-500.0,0.00042807,120]
[392439903,1761475872796,-500.0,0.00042807,120]
[392439904,1761475872806,-500.0,0.00042807,120]
[392439905,1761475872818,-500.0,0.00042807,120]
[392439906,1761475872828,-500.0,0.00042807,120]
[392439907,1761475872837,-500.0,0.00042807,120]
[392439908,1761475872847,-500.0,0.00042807,120]
[392439909,1761475872856,-500.0,0.00042807,120]
[392439910,1761475872867,-500.0,0.00042807,120]
[392439911,1761475872876,-500.0,0.00042807,120]
[392439912,1761475872885,-500.0,0.00042807,120]
[392439913,1761475872895,-500.0,0.00042807,120]
[392439914,1761475872907,-500.0,0.00042807,120]
[392439915,1761475872920,-668.0,0.00042807,120]
[392439916,1761475873002,-984.6395216,0.0004282,2]
[392439917,1761475873012,-15883.38,0.00042826,2]
[392439918,1761475873022,-319.41,0.00042834,2]
[392439919,1761475873031,-2817.2,0.00042839,2]
[392439920,1761475873040,-5000.0,0.000429,120]
[392439921,1761475873049,-2534.37,0.00042924,2]
[392439922,1761475873058,-2213.07,0.00042948,2]
[392439923,1761475873068,-157.22002088,0.00042999,120]
[392439924,1761475873078,-2312.0,0.00043,120]
[392439925,1761475873089,-520.3393856,0.00043,120]
[392439926,1761475873099,-500.0,0.00043,120]
[392439927,1761475873108,-17993.07400674,0.00043,120]
[392439928,1761475873117,-157.74823428,0.00043,120]
[392439929,1761475873126,-4834.64152969,0.00043,120]
[392439930,1761475873136,-168.68971521,0.00043,120]
[392439931,1761475873145,-215.45369498,0.00043,120]
[392439932,1761475873155,-1102.91092603,0.00043,120]
[392439933,1761475873164,-1182.09197154,0.000431,120]
[392439934,1761475873173,-179.67427927,0.0004311,120]
[392439935,1761475873183,-152.13145157,0.0004311,120]
[392439936,1761475873192,-10000.0,0.000432,120]
[392439937,1761475873201,-263.13790342,0.000432,120]
[392439938,1761475873211,-831.0,0.00043236,30]
[392439939,1761475873220,-574.91171459,0.00043236,30]
[392439940,1761475873231,-532.61119951,0.0004328,120]
[392439941,1761475873241,-721.98,0.000433,90]
[392439942,1761475873251,-507.15181486,0.00043336,11]
[392439943,1761475873260,-1392.96,0.00043364,30]
[392439944,1761475873270,-297.36,0.00043432,120]
[392439945,1761475873281,-176.47,0.00043441,30]
[392439946,1761475873291,-150.0,0.00043441,30]
[392439947,1761475873301,-150.0,0.00043441,30]
[392439948,1761475873311,-150.0,0.00043441,30]
[392439949,1761475873320,-150.0,0.00043441,30]
[392439950,1761475873329,-150.0,0.00043441,30]
[392439951,1761475873338,-150.0,0.00043441,30]
[392439952,1761475873347,-150.0,0.00043441,30]
[392439953,1761475873357,-168.0,0.00043496,90]
[392439954,1761475873367,-3292.08860152,0.000435,120]
[392439955,1761475873376,-215.149,0.00043568,2]
[392439956,1761475873385,-831.0,0.00043668,30]
[392439957,1761475873394,-249.13259932,0.000437,120]
[392439958,1761475873404,-6316.28061305,0.00043748,31]
[392439959,1761475873413,-1000.0,0.00043786,2]
[392439960,1761475873424,-165.13194038,0.000438,30]
[392439961,1761475873433,-172.11443777,0.000438,120]
[392439962,1761475873442,-1823.27906659,0.00043834,60]
[392439963,1761475873451,-500.0,0.00043836,120]
[392439964,1761475873461,-500.0,0.00043836,120]
[392439965,1761475873471,-500.0,0.00043836,120]
[392439966,1761475873480,-500.0,0.00043836,120]
[392439967,1761475873490,-500.0,0.00043836,120]
[392439968,1761475873500,-500.0,0.00043836,120]
[392439969,1761475873510,-500.0,0.00043836,120]
[392439970,1761475873520,-500.0,0.00043836,120]
[392439971,1761475873530,-500.0,0.00043836,120]
[392439972,1761475873539,-500.0,0.00043836,120]
[392439973,1761475873548,-500.0,0.00043836,120]
[392439974,1761475873558,-500.0,0.00043836,120]
[392439975,1761475873567,-500.0,0.00043836,120]
[392439976,1761475873578,-500.0,0.00043836,120]
[392439977,1761475873588,-500.0,0.00043836,120]
[392439978,1761475873598,-500.0,0.00043836,120]
[392439979,1761475873607,-500.0,0.00043836,120]
[392439980,1761475873617,-500.0,0.00043836,120]
[392439981,1761475873627,-500.0,0.00043836,120]
[392439982,1761475873636,-500.0,0.00043836,120]
[392439983,1761475873645,-500.0,0.00043836,120]
[392439984,1761475873655,-500.0,0.00043836,120]
[392439985,1761475873664,-500.0,0.00043836,120]
[392439986,1761475873673,-500.0,0.00043836,120]
[392439987,1761475873683,-500.0,0.00043836,120]
[392439988,1761475873692,-500.0,0.00043836,120]
[392439989,1761475873702,-500.0,0.00043836,120]
[392439990,1761475873711,-500.0,0.00043836,120]
[392439991,1761475873720,-500.0,0.00043836,120]
[392439992,1761475873730,-500.0,0.00043836,120]
[392439993,1761475873739,-500.0,0.00043836,120]
[392439994,1761475873748,-500.0,0.00043836,120]
[392439995,1761475873758,-500.0,0.00043836,120]
[392439996,1761475873767,-500.0,0.00043836,120]
[392439997,1761475873777,-500.0,0.00043836,120]
[392439998,1761475873787,-500.0,0.00043836,120]
[392439999,1761475873796,-500.0,0.00043836,120]
[392440000,1761475873806,-500.0,0.00043836,120]
[392440001,1761475873815,-500.0,0.00043836,120]
[392440002,1761475873825,-500.0,0.00043836,120]
[392440003,1761475873834,-152.0,0.0004388,6]
[392440004,1761475873844,-169.24277862,0.0004388,5]
[392440005,1761475873855,-2121.20545405,0.000439,120]
[392440006,1761475873864,-753.74,0.000439,14]
[392440007,1761475873874,-10000.0,0.000439,120]
[392440008,1761475873884,-152.13145157,0.00043908,120]
[392440009,1761475873894,-507.0,0.00043962,120]
[392440010,1761475873903,-445.0,0.00043986,120]
[392440011,1761475873917,-575.0,0.00044,30]
[392440012,1761475873928,-521.53972351,0.00044,120]
[392440013,1761475873938,-667.41897336,0.00044,120]
[392440014,1761475873948,-32811.8595741,0.00044,120]
[392440015,1761475873956,-550.98,0.00044,120]
[392440016,1761475873967,-156.0,0.00044,120]
[392440017,1761475873975,-163.0,0.00044,120]
[392440018,1761475873984,-1962.324107,0.00044,2]